fUST/lending_fUST_20241204
["ID","MTS","AMOUNT","RATE_DAILY","PERIOD"]
[344043901,1733245844252,-500.0,0.00030136,7]
[344043902,1733245844261,-500.0,0.00030136,7]
[344043903,1733245844270,-500.0,0.00030136,7]
[344043904,1733245844279,-500.0,0.00030136,7]
[344043905,1733245844288,-278.21799359,0.00030136,7]
[344043906,1733245844300,-221.78200641,0.00030136,7]
[344043907,1733245844309,-506.37078235,0.00030136,7]
[344043908,1733245844318,-500.0,0.00030136,7]
[344043909,1733245844327,-500.0,0.00030136,7]
[344043910,1733245844337,-500.0,0.00030136,7]
[344043911,1733245844345,-500.0,0.00030136,7]
[344043912,1733245844354,-500.0,0.00030136,7]
[344043913,1733245844363,-426.32850146,0.00030136,7]
[344043914,1733245844375,-73.67149854,0.00030136,7]
[344043915,1733245844384,-500.0,0.00030136,7]
[344043916,1733245844393,-124.59738461,0.00030136,7]
[344043917,1733245844404,-375.40261539,0.00030136,7]
[344043918,1733245844414,-500.0,0.00030136,7]
[344043919,1733245844424,-500.0,0.00030136,7]
[344043920,1733245844433,-500.0,0.00030136,7]
[344043921,1733245844443,-500.0,0.00030136,7]
[344043922,1733245844451,-255.88282855,0.00030136,7]
[344043924,1733245846015,-186.20184824,0.00030135,2]
[344043925,1733245846025,-946.14,0.00030136,7]
[344043926,1733245846034,-367.65546376,0.00030136,7]
[344043927,1733245846046,-578.48453624,0.00030136,7]
[344043928,1733245846056,-946.14,0.00030136,7]
[344043929,1733245846065,-138.88624442,0.00030136,7]
[344043939,1733245874308,1000.0,0.00026321,2]
[344043940,1733245874349,1000.0,0.00026305,2]
[344043941,1733245874374,969.69754262,0.00026501,2]
[344043942,1733245874395,30.30245738,0.00026501,2]
[344043943,1733245874422,1000.0,0.00026388,2]
[344043944,1733245874448,1000.0,0.00026354,2]
[344043945,1733245874475,1000.0,0.00026389,2]
[344043946,1733245874501,59.55914262,0.00026531,2]
[344043947,1733245874525,940.44085738,0.00026531,2]
[344043948,1733245874560,1000.0,0.00026353,2]
[344043949,1733245874586,1000.0,0.00026356,2]
[344043950,1733245874613,151.45970344,0.00026361,2]
[344043951,1733245874634,848.54029656,0.00026361,2]
[344043952,1733245874660,840.22781642,0.00026454,2]
[344043953,1733245874682,159.77218358,0.00026454,2]
[344043954,1733245877890,800.73858714,0.00026455,2]
[344043955,1733245882195,686.48964854,0.0002675,2]
[344048639,1733246741149,-168.52044779,0.00028136,2]
[344048647,1733246829110,-17.00210021,0.00028136,2]
[344048648,1733246829132,-4120.7761049,0.00028452,2]
[344048649,1733246829154,-95.32718494,0.00028489,2]
[344048650,1733246837085,-70.49335106,0.00028489,2]
[344048651,1733246837230,-300.0,0.00028754,2]
[344048652,1733246837255,-300.0,0.00028754,2]
[344048653,1733246837279,-813.84646932,0.00028755,2]
[344048654,1733246848135,-371.24641369,0.00028755,2]
[344048657,1733246916117,2000.0,0.00028,2]
[344048659,1733246922873,150.0,0.0002,7]
[344048660,1733246927015,4606.63890818,0.00026,30]
[344048666,1733247003405,217.7949331,0.00028,2]
[344048704,1733247034483,-480.215,0.00028755,2]
[344048705,1733247034564,-913.09628619,0.00028755,2]
[344048706,1733247034574,-2506.110714,0.00028921,2]
[344048707,1733247034584,-300.0,0.00029367,2]
[344048708,1733247034594,-204.80088043,0.00029495,2]
[344048709,1733247034604,-644.77327364,0.00029498,2]
[344048710,1733247034616,-8292.52099779,0.00029498,2]
[344048711,1733247034626,-176.88001289,0.00029679,2]
[344048712,1733247034636,-1169.27083333,0.00029733,3]
[344048713,1733247034646,-1169.27083333,0.00029733,3]
[344048714,1733247034655,-8937.29427143,0.00029773,2]
[344048716,1733247034667,-1019.35596988,0.00029804,2]
[344048717,1733247034677,-1019.35596983,0.00029956,2]
[344048719,1733247034686,-1082.15721,0.00029982,15]
[344048721,1733247034696,-151.0,0.0003,120]
[344048723,1733247034706,-151.0,0.0003,120]
[344048725,1733247034715,-390.0,0.0003,2]
[344048727,1733247034724,-152.0,0.0003,2]
[344048729,1733247034734,-8937.29427143,0.00030017,2]
[344048731,1733247034743,-6666.0,0.00030036,2]
[344048734,1733247034753,-613.60143543,0.00030036,2]
[344048737,1733247034762,-159.825484,0.0003004,2]
[344048740,1733247034772,-2000.0,0.000301,21]
[344048742,1733247034782,-151.0,0.000301,17]
[344048744,1733247034792,-248.2965,0.00030105,2]
[344048747,1733247034804,-1019.35596983,0.00030107,2]
[344048749,1733247034815,-3570.76,0.00030126,10]
[344048750,1733247034824,-352.62396679,0.00030128,2]
[344048752,1733247034834,-500.0,0.00030135,2]
[344048754,1733247034843,-500.0,0.00030135,2]
[344048755,1733247034853,-417.4777529,0.00030135,2]
[344048756,1733247034864,-500.0,0.00030135,2]
[344048757,1733247034874,-500.0,0.00030135,2]
[344048758,1733247034883,-500.0,0.00030135,2]
[344048759,1733247034893,-500.0,0.00030135,2]
[344048760,1733247034902,-345.87223378,0.00030135,2]
[344048761,1733247034914,-500.0,0.00030135,2]
[344048762,1733247034924,-500.0,0.00030135,2]
[344048763,1733247035029,-446.47786182,0.00030135,2]
[344048764,1733247035043,-500.0,0.00030135,2]
[344048765,1733247035052,-500.0,0.00030135,2]
[344048766,1733247035062,-500.0,0.00030135,2]
[344048767,1733247035072,-500.0,0.00030135,2]
[344048768,1733247035083,-500.0,0.00030135,2]
[344048769,1733247035092,-500.0,0.00030135,2]
[344048770,1733247035102,-500.0,0.00030135,2]
[344048771,1733247035114,-500.0,0.00030135,2]
[344048772,1733247035125,-500.0,0.00030135,2]
[344048773,1733247035135,-500.0,0.00030135,2]
[344048774,1733247035144,-193.5372622,0.00030135,2]
[344048775,1733247035153,-500.0,0.00030135,2]
[344048776,1733247035166,-500.0,0.00030135,2]
[344048777,1733247035178,-500.0,0.00030135,2]
[344048778,1733247035188,-500.0,0.00030135,2]
[344048779,1733247035198,-500.0,0.00030135,2]
[344048780,1733247035208,-500.0,0.00030135,2]
[344048781,1733247035218,-336.2242293,0.00030135,2]
[344048782,1733247035229,-600.0,0.00030135,2]
[344048783,1733247035238,-500.0,0.00030135,2]
[344048784,1733247035248,-500.0,0.00030135,2]
[344048785,1733247035258,-500.0,0.00030135,2]
[344048786,1733247035268,-500.0,0.00030135,2]
[344048787,1733247035278,-500.0,0.00030135,2]
[344048788,1733247035288,-500.0,0.00030135,2]
[344048789,1733247035298,-500.0,0.00030135,2]
[344048790,1733247035309,-500.0,0.00030135,2]
[344048791,1733247035319,-500.0,0.00030135,2]
[344048792,1733247035329,-500.0,0.00030135,2]
[344048793,1733247035339,-500.0,0.00030135,2]
[344048794,1733247035349,-500.0,0.00030135,2]
[344048795,1733247035359,-500.0,0.00030135,2]
[344048796,1733247035369,-500.0,0.00030135,2]
[344048797,1733247035378,-500.0,0.00030135,2]
[344048798,1733247035388,-500.0,0.00030135,2]
[344048799,1733247035398,-500.0,0.00030135,2]
[344048800,1733247035412,-500.0,0.00030135,2]
[344048801,1733247035423,-500.0,0.00030135,2]
[344048802,1733247035433,-500.0,0.00030135,2]
[344048803,1733247035443,-500.0,0.00030135,2]
[344048804,1733247035453,-336.2242293,0.00030135,2]
[344048805,1733247035464,-500.0,0.00030135,2]
[344048806,1733247035475,-500.0,0.00030135,2]
[344048807,1733247035485,-400.36874585,0.00030135,2]
[344048808,1733247035495,-216.64762965,0.00030135,2]
[344048809,1733247035505,-348.63974522,0.00030135,2]
[344048810,1733247035515,-171.52230488,0.00030136,2]
[344048811,1733247035525,-3331.53197416,0.00030136,2]
[344048856,1733247038259,-760.95304001,0.00030036,7]
[344048858,1733247038269,-2975.63,0.00030126,10]
[344048860,1733247038279,-37592.13085364,0.00030136,2]
[344048861,1733247038362,-18.7244942,0.00030136,2]
[344048863,1733247038374,-5116.99294888,0.00030136,2]
[344048866,1733247038447,-6812.19922392,0.00030136,2]
[344048868,1733247038457,-1169.27083333,0.00030136,7]
[344048869,1733247038467,-1169.27083333,0.00030136,7]
[344048870,1733247038477,-500.0,0.00030136,7]
[344048871,1733247038486,-500.0,0.00030136,7]
[344048872,1733247038496,-500.0,0.00030136,7]
[344048873,1733247038506,-500.0,0.00030136,7]
[344048874,1733247038515,-511.19332089,0.00030136,7]
[344048875,1733247038525,-500.0,0.00030136,7]
[344048876,1733247038535,-574.60976727,0.00030136,7]
[344048877,1733247038544,-500.0,0.00030136,2]
[344048878,1733247038554,-500.0,0.00030136,2]
[344048879,1733247038564,-646.9254389,0.00030136,2]
[344048880,1733247038573,-500.0,0.00030136,7]
[344048881,1733247038583,-500.0,0.00030136,7]
[344048882,1733247038592,-500.0,0.00030136,7]
[344048883,1733247038601,-500.0,0.00030136,7]
[344048884,1733247038611,-287.11223991,0.00030136,7]
[344048885,1733247038620,-500.0,0.00030136,7]
[344048886,1733247038629,-500.0,0.00030136,7]
[344048887,1733247038639,-500.0,0.00030136,7]
[344048888,1733247038649,-500.0,0.00030136,7]
[344048889,1733247038663,-200.51471164,0.00030136,7]
[344048890,1733247038672,-200.0,0.00030136,7]
[344048891,1733247038682,-200.0,0.00030136,7]
[344048892,1733247038692,-200.0,0.00030136,7]
[344048893,1733247038701,-200.0,0.00030136,7]
[344048894,1733247038711,-200.0,0.00030136,7]
[344048895,1733247038720,-200.0,0.00030136,7]
[344048896,1733247038729,-200.0,0.00030136,7]
[344048897,1733247038738,-200.0,0.00030136,7]
[344048898,1733247038747,-200.0,0.00030136,7]
[344048899,1733247038757,-263.38735712,0.00030136,7]
[344048900,1733247038766,-225.86565065,0.00030136,7]
[344048901,1733247038775,-500.0,0.00030136,7]
[344048902,1733247038784,-500.0,0.00030136,7]
[344048903,1733247038794,-634.90993357,0.00030136,7]
[344048904,1733247038803,-500.0,0.00030136,7]
[344048905,1733247038812,-500.0,0.00030136,7]
[344048906,1733247038821,-497.21009805,0.00030136,7]
[344048907,1733247038831,-500.0,0.00030136,7]
[344048908,1733247038840,-500.0,0.00030136,7]
[344048909,1733247038849,-500.0,0.00030136,7]
[344048910,1733247038858,-612.69298005,0.00030136,7]
[344048911,1733247038867,-633.1058356,0.00030136,7]
[344048912,1733247038876,-406.99316598,0.00030136,7]
[344048913,1733247038885,-500.0,0.00030136,7]
[344048914,1733247038894,-500.0,0.00030136,7]
[344048915,1733247038903,-500.0,0.00030136,7]
[344048916,1733247038914,-500.0,0.00030136,7]
[344048917,1733247038922,-500.0,0.00030136,7]
[344048918,1733247038932,-500.0,0.00030136,7]
[344048919,1733247038942,-526.35646344,0.00030136,7]
[344048920,1733247038951,-500.0,0.00030136,7]
[344048921,1733247038960,-500.0,0.00030136,7]
[344048922,1733247038969,-500.0,0.00030136,7]
[344048923,1733247038978,-500.0,0.00030136,7]
[344048924,1733247038987,-500.0,0.00030136,7]
[344048925,1733247038996,-500.0,0.00030136,7]
[344048926,1733247039005,-355.35664517,0.00030136,7]
[344048927,1733247039014,-500.0,0.00030136,7]
[344048928,1733247039024,-500.0,0.00030136,7]
[344048929,1733247039034,-500.0,0.00030136,7]
[344048930,1733247039045,-500.0,0.00030136,7]
[344048931,1733247039054,-500.0,0.00030136,7]
[344048932,1733247039063,-500.0,0.00030136,7]
[344048933,1733247039073,-500.0,0.00030136,7]
[344048934,1733247039083,-500.0,0.00030136,7]
[344048935,1733247039092,-500.0,0.00030136,7]
[344048937,1733247039101,-500.0,0.00030136,7]
[344048938,1733247039111,-500.0,0.00030136,7]
[344048939,1733247039120,-500.0,0.00030136,7]
[344048940,1733247039130,-500.0,0.00030136,7]
[344048941,1733247039140,-500.0,0.00030136,7]
[344048942,1733247039149,-500.0,0.00030136,7]
[344048944,1733247039160,-500.0,0.00030136,7]
[344048945,1733247039170,-500.0,0.00030136,7]
[344048946,1733247039179,-500.0,0.00030136,7]
[344048947,1733247039188,-501.9880161,0.00030136,7]
[344048949,1733247039198,-500.0,0.00030136,7]
[344048951,1733247039207,-514.0303073,0.00030136,7]
[344048952,1733247039217,-501.61998695,0.00030136,7]
[344048953,1733247039227,-500.0,0.00030136,7]
[344048954,1733247039236,-511.62130349,0.00030136,7]
[344048955,1733247039246,-500.0,0.00030136,7]
[344048956,1733247039256,-500.0,0.00030136,7]
[344048957,1733247039266,-500.0,0.00030136,7]
[344048958,1733247039275,-505.75222231,0.00030136,7]
[344048959,1733247039284,-506.07657769,0.00030136,7]
[344048960,1733247039295,-502.1835736,0.00030136,7]
[344048961,1733247039304,-500.0,0.00030136,7]
[344048962,1733247039314,-500.0,0.00030136,7]
[344048963,1733247039323,-168.8203895,0.00030136,7]
[344048964,1733247039333,-500.0,0.00030136,7]
[344048965,1733247039343,-647.44465683,0.00030136,7]
[344048966,1733247039352,-500.0,0.00030136,7]
[344048967,1733247039362,-568.07219347,0.00030136,7]
[344048968,1733247039440,-500.0,0.00030136,7]
[344048969,1733247039450,-500.0,0.00030136,7]
[344048970,1733247039460,-500.0,0.00030136,7]
[344048971,1733247039469,-500.0,0.00030136,7]
[344048972,1733247039479,-500.0,0.00030136,7]
[344048973,1733247039488,-500.0,0.00030136,7]
[344048974,1733247039497,-500.0,0.00030136,7]
[344048975,1733247039507,-500.0,0.00030136,7]
[344048976,1733247039516,-500.0,0.00030136,7]
[344048977,1733247039526,-610.4614847,0.00030136,7]
[344048978,1733247039535,-500.0,0.00030136,7]
[344048980,1733247039545,-343.56375509,0.00030136,7]
[344048981,1733247039555,-500.0,0.00030136,7]
[344048982,1733247039564,-500.0,0.00030136,7]
[344048983,1733247039573,-500.0,0.00030136,7]
[344048984,1733247039583,-500.0,0.00030136,7]
[344048985,1733247039592,-500.0,0.00030136,7]
[344048986,1733247039602,-500.0,0.00030136,7]
[344048987,1733247039612,-500.0,0.00030136,7]
[344048988,1733247039621,-500.0,0.00030136,7]
[344048989,1733247039631,-500.0,0.00030136,7]
[344048990,1733247039641,-641.19511504,0.00030136,7]
[344048991,1733247039651,-500.0,0.00030136,7]
[344048992,1733247039663,-598.28276402,0.00030136,7]
[344048994,1733247039672,-500.0,0.00030136,7]
[344048995,1733247039682,-500.0,0.00030136,7]
[344048996,1733247039692,-500.0,0.00030136,7]
[344048997,1733247039702,-500.0,0.00030136,7]
[344048998,1733247039712,-500.0,0.00030136,7]
[344048999,1733247039721,-639.89,0.00030136,7]
[344049000,1733247039731,-500.0,0.00030136,7]
[344049001,1733247039741,-500.0,0.00030136,7]
[344049002,1733247039750,-523.75190838,0.00030136,7]
[344049003,1733247039760,-401.13906443,0.00030136,7]
[344049005,1733247039770,-518.93846474,0.00030136,7]
[344049006,1733247039779,-199.85,0.00030136,7]
[344049007,1733247039788,-500.0,0.00030136,7]
[344049008,1733247039798,-500.0,0.00030136,7]
[344049009,1733247039807,-500.0,0.00030136,7]
[344049010,1733247039817,-560.4105563,0.00030136,7]
[344049011,1733247039827,-507.4702431,0.00030136,2]
[344049012,1733247039836,-500.0,0.00030136,7]
[344049013,1733247039846,-515.52008227,0.00030136,7]
[344049014,1733247039855,-219.79032384,0.00030136,7]
[344049015,1733247039865,-500.0,0.00030136,7]
[344049016,1733247039875,-500.0,0.00030136,7]
[344049017,1733247039885,-500.0,0.00030136,7]
[344049018,1733247039897,-475.02,0.00030136,7]
[344049019,1733247039906,-307.86268293,0.00030136,7]
[344049020,1733247039920,-500.0,0.00030136,7]
[344049021,1733247039930,-500.0,0.00030136,7]
[344049022,1733247039939,-500.0,0.00030136,7]
[344049023,1733247039948,-500.0,0.00030136,7]
[344049024,1733247039958,-500.0,0.00030136,7]
[344049025,1733247039967,-500.0,0.00030136,7]
[344049026,1733247039977,-500.0,0.00030136,7]
[344049027,1733247039987,-500.0,0.00030136,7]
[344049028,1733247039997,-508.99584045,0.00030136,7]
[344049029,1733247040006,-500.0,0.00030136,7]
[344049030,1733247040018,-500.0,0.00030136,7]
[344049031,1733247040028,-500.0,0.00030136,7]
[344049032,1733247040041,-500.0,0.00030136,7]
[344049033,1733247040050,-501.95080589,0.00030136,7]
[344049034,1733247040059,-500.0,0.00030136,7]
[344049035,1733247040069,-500.0,0.00030136,7]
[344049036,1733247040079,-500.0,0.00030136,7]
[344049038,1733247040088,-500.0,0.00030136,7]
[344049039,1733247040098,-500.0,0.00030136,7]
[344049040,1733247040108,-500.0,0.00030136,7]
[344049041,1733247040117,-500.0,0.00030136,7]
[344049042,1733247040127,-500.0,0.00030136,7]
[344049043,1733247040137,-500.0,0.00030136,7]
[344049044,1733247040146,-500.0,0.00030136,7]
[344049045,1733247040155,-423.72,0.00030136,7]
[344049046,1733247040171,-500.0,0.00030136,7]
[344049047,1733247040180,-500.0,0.00030136,7]
[344049048,1733247040190,-500.0,0.00030136,7]
[344049049,1733247040199,-500.0,0.00030136,7]
[344049050,1733247040208,-500.0,0.00030136,7]
[344049051,1733247040217,-500.0,0.00030136,7]
[344049052,1733247040226,-500.0,0.00030136,7]
[344049053,1733247040235,-500.0,0.00030136,7]
[344049054,1733247040244,-500.0,0.00030136,7]
[344049055,1733247040254,-500.0,0.00030136,7]
[344049056,1733247040263,-500.0,0.00030136,7]
[344049057,1733247040273,-370.29426015,0.00030136,7]
[344049058,1733247040282,-500.0,0.00030136,7]
[344049059,1733247040292,-500.0,0.00030136,7]
[344049060,1733247040301,-500.0,0.00030136,7]
[344049061,1733247040311,-500.0,0.00030136,7]
[344049062,1733247040321,-500.0,0.00030136,7]
[344049063,1733247040330,-500.0,0.00030136,7]
[344049064,1733247040339,-168.0,0.00030136,7]
[344049065,1733247040349,-168.0,0.00030136,7]
[344049066,1733247040358,-168.0,0.00030136,7]
[344049067,1733247040367,-168.0,0.00030136,7]
[344049068,1733247040377,-168.0,0.00030136,7]
[344049069,1733247040387,-168.0,0.00030136,7]
[344049070,1733247040397,-168.0,0.00030136,7]
[344049071,1733247040407,-168.0,0.00030136,7]
[344049072,1733247040422,-500.0,0.00030136,7]
[344049073,1733247040432,-168.0,0.00030136,7]
[344049074,1733247040442,-500.0,0.00030136,7]
[344049075,1733247040451,-500.0,0.00030136,7]
[344049076,1733247040462,-500.0,0.00030136,7]
[344049077,1733247040471,-168.0,0.00030136,7]
[344049078,1733247040481,-500.0,0.00030136,7]
[344049079,1733247040491,-500.0,0.00030136,7]
[344049080,1733247040501,-168.0,0.00030136,7]
[344049081,1733247040510,-500.0,0.00030136,7]
[344049082,1733247040521,-500.0,0.00030136,7]
[344049083,1733247040531,-500.0,0.00030136,7]
[344049084,1733247040540,-524.98,0.00030136,7]
[344049085,1733247040550,-168.0,0.00030136,7]
[344049086,1733247040560,-168.0,0.00030136,7]
[344049087,1733247040570,-187.64754463,0.00030136,7]
[344049088,1733247040580,-500.84080777,0.00030136,7]
[344049089,1733247040590,-500.0,0.00030136,7]
[344049090,1733247040600,-500.0,0.00030136,7]
[344049091,1733247040610,-500.0,0.00030136,7]
[344049092,1733247040620,-248.46,0.00030136,7]
[344049093,1733247040630,-500.0,0.00030136,7]
[344049094,1733247040640,-500.0,0.00030136,7]
[344049095,1733247040650,-500.0,0.00030136,7]
[344049096,1733247040663,-500.0,0.00030136,7]
[344049097,1733247040672,-500.0,0.00030136,7]
[344049098,1733247040682,-500.0,0.00030136,7]
[344049099,1733247040692,-500.0,0.00030136,7]
[344049100,1733247040701,-500.0,0.00030136,7]
[344049101,1733247040711,-500.0,0.00030136,7]
[344049102,1733247040721,-500.0,0.00030136,7]
[344049103,1733247040730,-500.0,0.00030136,7]
[344049104,1733247040740,-635.76,0.00030136,7]
[344049105,1733247040750,-500.0,0.00030136,7]
[344049106,1733247040759,-500.0,0.00030136,7]
[344049107,1733247040769,-500.0,0.00030136,7]
[344049108,1733247040778,-500.0,0.00030136,7]
[344049109,1733247040788,-500.0,0.00030136,7]
[344049110,1733247040798,-500.0,0.00030136,7]
[344049111,1733247040807,-500.0,0.00030136,7]
[344049112,1733247040816,-500.0,0.00030136,7]
[344049113,1733247040826,-500.0,0.00030136,7]
[344049114,1733247040836,-500.0,0.00030136,7]
[344049115,1733247040846,-329.69554187,0.00030136,7]
[344049116,1733247040855,-500.0,0.00030136,7]
[344049117,1733247040865,-500.0,0.00030136,7]
[344049118,1733247040879,-500.0,0.00030136,7]
[344049119,1733247040888,-500.0,0.00030136,7]
[344049120,1733247040897,-500.0,0.00030136,7]
[344049121,1733247040906,-500.0,0.00030136,7]
[344049122,1733247040919,-500.0,0.00030136,7]
[344049123,1733247040928,-500.0,0.00030136,7]
[344049124,1733247040938,-500.0,0.00030136,7]
[344049125,1733247040947,-500.0,0.00030136,7]
[344049126,1733247040957,-500.0,0.00030136,7]
[344049127,1733247040967,-500.0,0.00030136,7]
[344049128,1733247040976,-500.0,0.00030136,7]
[344049129,1733247040986,-500.0,0.00030136,7]
[344049130,1733247040996,-500.0,0.00030136,7]
[344049131,1733247041005,-500.0,0.00030136,7]
[344049132,1733247041014,-500.0,0.00030136,7]
[344049133,1733247041024,-500.0,0.00030136,7]
[344049134,1733247041034,-247.87,0.00030136,7]
[344049135,1733247041045,-548.77353284,0.00030136,7]
[344049136,1733247041054,-500.0,0.00030136,7]
[344049137,1733247041063,-508.86280911,0.00030136,7]
[344049138,1733247041074,-500.0,0.00030136,7]
[344049139,1733247041083,-500.0,0.00030136,7]
[344049140,1733247041157,-500.0,0.00030136,7]
[344049141,1733247041168,-500.0,0.00030136,7]
[344049142,1733247041177,-500.0,0.00030136,7]
[344049143,1733247041187,-500.0,0.00030136,7]
[344049144,1733247041196,-500.0,0.00030136,7]
[344049145,1733247041206,-500.0,0.00030136,7]
[344049146,1733247041219,-500.0,0.00030136,7]
[344049147,1733247041228,-500.0,0.00030136,7]
[344049148,1733247041237,-500.0,0.00030136,7]
[344049149,1733247041246,-500.0,0.00030136,7]
[344049150,1733247041256,-500.0,0.00030136,7]
[344049151,1733247041265,-500.0,0.00030136,7]
[344049152,1733247041275,-500.0,0.00030136,7]
[344049153,1733247041284,-500.0,0.00030136,7]
[344049154,1733247041294,-643.11110704,0.00030136,7]
[344049155,1733247041303,-500.0,0.00030136,7]
[344049156,1733247041313,-500.0,0.00030136,7]
[344049157,1733247041322,-277.67,0.00030136,7]
[344049158,1733247041331,-500.0,0.00030136,7]
[344049159,1733247041341,-500.0,0.00030136,7]
[344049160,1733247041351,-500.0,0.00030136,7]
[344049161,1733247041361,-500.0,0.00030136,7]
[344049162,1733247041370,-156.60336297,0.00030136,7]
[344049163,1733247041382,-500.0,0.00030136,7]
[344049164,1733247041391,-500.0,0.00030136,7]
[344049165,1733247041401,-500.0,0.00030136,7]
[344049166,1733247041411,-419.28,0.00030136,7]
[344049167,1733247041420,-500.0,0.00030136,7]
[344049168,1733247041430,-500.0,0.00030136,7]
[344049169,1733247041440,-500.0,0.00030136,7]
[344049170,1733247041449,-500.0,0.00030136,7]
[344049171,1733247041459,-500.0,0.00030136,7]
[344049172,1733247041468,-500.0,0.00030136,7]
[344049173,1733247041479,-500.0,0.00030136,7]
[344049174,1733247041489,-500.0,0.00030136,7]
[344049175,1733247041498,-500.0,0.00030136,7]
[344049176,1733247041508,-500.0,0.00030136,7]
[344049177,1733247041519,-479.22396847,0.00030136,7]
[344049178,1733247041528,-500.0,0.00030136,7]
[344049179,1733247041539,-500.0,0.00030136,7]
[344049180,1733247041549,-500.0,0.00030136,7]
[344049181,1733247041559,-500.0,0.00030136,7]
[344049182,1733247041568,-500.0,0.00030136,7]
[344049183,1733247041577,-417.01307124,0.00030136,7]
[344049184,1733247041661,-82.98692876,0.00030136,7]
[344049185,1733247041671,-500.0,0.00030136,7]
[344049186,1733247041680,-500.0,0.00030136,7]
[344049187,1733247041689,-500.0,0.00030136,7]
[344049188,1733247041698,-271.5538991,0.00030136,7]
[344049189,1733247041708,-500.0,0.00030136,7]
[344049190,1733247041717,-500.0,0.00030136,7]
[344049191,1733247041727,-433.32131233,0.00030136,7]
[344049192,1733247041737,-500.0,0.00030136,7]
[344049193,1733247041746,-500.0,0.00030136,7]
[344049194,1733247041755,-500.0,0.00030136,7]
[344049195,1733247041765,-229.00057709,0.00030136,7]
[344049196,1733247041774,-500.0,0.00030136,7]
[344049197,1733247041784,-500.0,0.00030136,7]
[344049198,1733247041794,-500.0,0.00030136,7]
[344049199,1733247041804,-500.0,0.00030136,7]
[344049200,1733247041813,-500.0,0.00030136,7]
[344049201,1733247041823,-500.0,0.00030136,7]
[344049202,1733247041832,-500.0,0.00030136,7]
[344049203,1733247041842,-500.0,0.00030136,7]
[344049204,1733247041851,-500.0,0.00030136,7]
[344049205,1733247041861,-500.0,0.00030136,7]
[344049206,1733247041870,-500.0,0.00030136,7]
[344049207,1733247041880,-500.0,0.00030136,7]
[344049208,1733247041889,-500.0,0.00030136,7]
[344049209,1733247041898,-500.0,0.00030136,7]
[344049210,1733247041908,-500.0,0.00030136,7]
[344049211,1733247041926,-500.0,0.00030136,7]
[344049212,1733247041935,-500.0,0.00030136,7]
[344049213,1733247041944,-500.0,0.00030136,7]
[344049214,1733247041953,-500.0,0.00030136,7]
[344049215,1733247041962,-500.0,0.00030136,7]
[344049216,1733247041972,-500.0,0.00030136,7]
[344049217,1733247041981,-346.14863106,0.00030136,7]
[344049218,1733247041989,-500.0,0.00030136,7]
[344049219,1733247041998,-500.0,0.00030136,7]
[344049220,1733247042008,-500.0,0.00030136,7]
[344049221,1733247042017,-500.0,0.00030136,7]
[344049222,1733247042027,-500.0,0.00030136,7]
[344049223,1733247042040,-500.0,0.00030136,7]
[344049224,1733247042051,-500.0,0.00030136,7]